bitfinex-derivatives/quotes_BTCF0:USTF0_20250127
["timestamp","ask_amount","ask_price","bid_price","bid_amount"]
[1737955880809,0.30304556,100460.0,100450.0,0.349913]
[1737955881319,0.30304556,100460.0,100450.0,1.849913]
[1737955881507,0.200193,100460.0,100450.0,1.849913]
[1737955882616,0.31819818,100460.0,100450.0,1.849913]
[1737955883210,0.31819818,100460.0,100450.0,0.349913]
[1737955883408,1.15265074,100460.0,100450.0,0.001]
[1737955883611,0.209268,100430.0,100410.0,0.247576]
[1737955883815,0.31212056,100430.0,100410.0,0.247576]
[1737955884017,0.67292056,100430.0,100410.0,0.247576]
[1737955884215,0.31212056,100430.0,100410.0,0.247576]
[1737955884713,0.31326954,100430.0,100410.0,0.27854475]
[1737955885116,0.199273,100420.0,100410.0,0.27854475]
[1737955885423,0.199273,100420.0,100410.0,0.07926875]
[1737955885817,0.199273,100420.0,100410.0,1.57926875]
[1737955886014,0.199273,100420.0,100410.0,1.58426875]
[1737955886411,0.200273,100420.0,100410.0,1.58426875]
[1737955887520,0.200273,100420.0,100410.0,0.08426875]
[1737955887910,0.200273,100420.0,100410.0,2.14436175]
[1737955888110,0.200273,100420.0,100410.0,1.78356175]
[1737955888315,0.200273,100420.0,100410.0,0.28356175]
[1737955888516,0.200273,100420.0,100410.0,0.64436175]
[1737955889312,0.200273,100420.0,100410.0,2.14436175]
[1737955889507,0.001,100420.0,100410.0,2.14436175]
[1737955894718,0.001,100420.0,100410.0,2.24721431]
[1737955894922,0.00014898,100430.0,100420.0,0.199273]
[1737955895125,0.00014898,100430.0,100420.0,0.607073]
[1737955895420,0.00014898,100430.0,100420.0,2.107073]
[1737955896023,0.00114898,100430.0,100420.0,2.116073]
[1737955896227,0.00114898,100430.0,100420.0,2.120073]
[1737955898122,0.30325454,100430.0,100420.0,0.620073]
[1737955898629,0.30325454,100430.0,100420.0,0.013]
[1737955898824,0.66405454,100430.0,100420.0,0.013]
[1737955899917,0.30212556,100420.0,100410.0,0.00014898]
[1737955900117,0.66292556,100420.0,100410.0,0.00014898]
[1737955900923,0.209293,100410.0,100400.0,0.1]
[1737955901122,0.570093,100410.0,100400.0,0.1]
[1737955901729,0.570093,100410.0,100400.0,0.1200015]
[1737955901931,0.3708,100410.0,100400.0,0.1200015]
[1737955902227,0.3708,100410.0,100400.0,0.1290015]
[1737955902431,0.3718,100410.0,100400.0,0.1290015]
[1737955902734,0.3718,100410.0,100400.0,0.1340015]
[1737955903732,0.011,100410.0,100400.0,0.6941135]
[1737955905225,0.3718,100410.0,100400.0,0.3333135]
[1737955905425,0.47465256,100410.0,100400.0,0.3333135]
[1737955905625,0.61145256,100410.0,100400.0,0.3333135]
[1737955905826,0.5086,100410.0,100400.0,1.8333135]
[1737955906122,0.5086,100410.0,100400.0,0.3333135]
[1737955906932,0.5086,100410.0,100400.0,0.15384942]
[1737955907533,0.61145256,100410.0,100400.0,0.15384942]
[1737955909033,0.61145256,100410.0,100400.0,0.17359335]
[1737955909234,0.74249458,100410.0,100400.0,0.17359335]
[1737955909741,0.81319458,100410.0,100400.0,0.17359335]
[1737955910439,0.81319458,100410.0,100400.0,0.15384942]
[1737955912238,0.71034202,100410.0,100400.0,0.15384942]
[1737955912435,0.71034202,100410.0,100400.0,0.15684942]
[1737955914138,0.5783,100410.0,100400.0,0.15684942]
[1737955914444,0.5793,100410.0,100400.0,0.02468007]
[1737955914745,0.5793,100410.0,100400.0,0.199312]
[1737955915046,0.2175,100410.0,100400.0,0.201312]
[1737955915636,0.0774,100410.0,100400.0,0.201312]
[1737955915842,0.01,100410.0,100400.0,0.201312]
[1737955916345,0.01,100410.0,100400.0,0.200312]
[1737955917243,0.45334371,100410.0,100400.0,0.200312]
[1737955917641,0.90699627,100410.0,100400.0,0.001]
[1737955917845,1.23888827,100410.0,100400.0,0.001]
[1737955918344,1.30478827,100410.0,100400.0,0.001]
[1737955920545,1.20193571,100410.0,100400.0,0.001]
[1737955921347,1.21193571,100410.0,100400.0,0.200312]
[1737955921842,1.01343571,100410.0,100400.0,0.200312]
[1737955922035,0.81414371,100410.0,100400.0,0.200312]
[1737955922232,0.45334371,100410.0,100400.0,0.200312]
[1737955923940,0.45334371,100410.0,100400.0,1.700312]
[1737955924943,0.44334371,100410.0,100400.0,1.80316456]
[1737955925145,0.44334371,100410.0,100400.0,2.16396456]
[1737955925545,0.22614371,100410.0,100400.0,2.16396456]
[1737955925746,0.26600623,100420.0,100410.0,0.199292]
[1737955925941,0.26600623,100420.0,100410.0,0.7284813]
[1737955926148,0.04880623,100420.0,100410.0,0.7284813]
[1737955926453,0.22418848,100420.0,100410.0,2.21908606]
[1737955927551,0.22618848,100420.0,100410.0,2.21908606]
[1737955927944,0.22618848,100420.0,100410.0,2.125392]
[1737955928149,0.32988254,100420.0,100410.0,0.199292]
[1737955928356,0.01,100410.0,100390.0,0.58011619]
[1737955928652,0.01,100410.0,100400.0,0.199312]
[1737955928854,0.01,100410.0,100400.0,0.560112]
[1737955929653,0.43546548,100420.0,100400.0,0.560112]
[1737955929849,0.01,100410.0,100400.0,0.560112]
[1737955930656,0.011,100410.0,100400.0,0.560112]
[1737955931255,0.01,100410.0,100400.0,0.561112]
[1737955931757,0.18850342,100410.0,100400.0,0.561112]
[1737955932757,0.83228948,100410.0,100400.0,0.001]
[1737955932965,0.73859542,100410.0,100400.0,0.001]
[1737955933854,0.53930342,100410.0,100400.0,0.200312]
[1737955934060,0.54930342,100410.0,100400.0,0.29400606]
[1737955934356,0.18850342,100410.0,100400.0,0.29400606]
[1737955934558,0.17850342,100410.0,100400.0,0.65480606]
[1737955935056,0.17850342,100410.0,100400.0,0.561112]
[1737955935458,0.17850342,100410.0,100400.0,0.65480606]
[1737955935655,0.12479749,100410.0,100400.0,0.65480606]
[1737955936052,0.12479749,100410.0,100400.0,0.67870606]
[1737955936850,0.06841319,100420.0,100410.0,0.199292]
[1737955937048,0.06841319,100420.0,100410.0,0.72118606]
[1737955938461,0.32924912,100420.0,100410.0,0.72118606]
[1737955938648,0.32924912,100420.0,100410.0,2.22118606]
[1737955938853,0.32924912,100420.0,100410.0,2.58198606]
[1737955943859,0.09111842,100420.0,100410.0,2.58198606]
[1737955947261,0.09111842,100420.0,100410.0,2.60676029]
[1737955947766,0.15931842,100420.0,100410.0,2.60676029]
[1737955953070,0.22851842,100420.0,100410.0,2.60676029]
[1737955954775,0.22851842,100420.0,100410.0,2.53936029]
[1737955956673,0.25822456,100420.0,100410.0,2.53936029]
[1737955956861,0.18902456,100420.0,100410.0,1.03936029]
[1737955957271,0.18902456,100420.0,100410.0,2.53936029]
[1737955959370,0.0702,100420.0,100410.0,2.53936029]
[1737955959882,0.0702,100420.0,100410.0,2.60606029]
[1737955961883,0.0702,100420.0,100410.0,2.53936029]
[1737955962984,0.27821652,100420.0,100410.0,2.53936029]
[1737955965781,0.2189496,100420.0,100410.0,2.53936029]
[1737955967077,0.2289496,100420.0,100410.0,0.94566623]
[1737955967683,0.2289496,100420.0,100410.0,0.22406623]
[1737955968685,0.2289496,100420.0,100410.0,0.31776029]
[1737955968886,0.2289496,100420.0,100410.0,0.67856029]
[1737955970180,0.2189496,100420.0,100410.0,0.67856029]
[1737955970380,0.11864837,100420.0,100410.0,0.67856029]
[1737955973091,0.11864837,100420.0,100410.0,2.17856029]
[1737955973391,0.29752453,100420.0,100410.0,2.17856029]
[1737955973582,0.29752453,100420.0,100410.0,0.67856029]
[1737955973782,0.29752453,100420.0,100410.0,0.58486623]
[1737955975282,0.29752453,100420.0,100410.0,0.67856029]
[1737955977786,0.24907616,100420.0,100410.0,0.67856029]
[1737955978988,0.24907616,100420.0,100410.0,0.74966029]
[1737955979699,0.24907616,100420.0,100410.0,2.24966029]
[1737955980697,0.056985,100430.0,100420.0,0.199273]
[1737955980884,0.056985,100430.0,100420.0,0.65376706]
[1737955981088,0.1548,100440.0,100430.0,0.199253]
[1737955981288,0.1548,100440.0,100430.0,0.65374706]
[1737955981489,0.46551809,100440.0,100430.0,0.65374706]
[1737955982793,0.46751809,100440.0,100430.0,0.65374706]
[1737955983396,0.45751809,100440.0,100430.0,0.65374706]
[1737955983597,0.38471809,100440.0,100430.0,0.72581293]
[1737955983899,0.39271809,100440.0,100430.0,0.79451293]
[1737955984101,0.39271809,100440.0,100430.0,0.72581293]
[1737955985096,0.39271809,100440.0,100430.0,2.22581293]
[1737955985794,0.2309866,100440.0,100430.0,2.15371293]
[1737955987096,0.2309866,100440.0,100430.0,2.22601293]
[1737955988606,0.2263357,100440.0,100430.0,2.22601293]
[1737955988910,0.28568532,100440.0,100430.0,2.22601293]
[1737955989304,0.21833622,100440.0,100430.0,2.25685824]
[1737955989612,0.21833622,100440.0,100430.0,2.27935824]
[1737955990107,0.21833622,100440.0,100430.0,0.77935824]
[1737955990608,0.21833622,100440.0,100430.0,2.27935824]
[1737955990800,0.20445296,100440.0,100430.0,2.27935824]
[1737955991905,0.1290416,100450.0,100440.0,0.199233]
[1737955992111,0.02996583,100450.0,100440.0,0.80781293]
[1737955992497,0.02996583,100450.0,100440.0,0.80779421]
[1737955993304,0.06754898,100460.0,100450.0,0.199213]
[1737955993497,0.06754898,100460.0,100450.0,0.65365421]
[1737955994813,0.07554898,100460.0,100450.0,0.65465421]
[1737955996008,0.07554898,100460.0,100450.0,0.72295421]
[1737955996213,0.07554898,100460.0,100450.0,2.22295421]
[1737955999705,0.07554898,100460.0,100450.0,2.15465421]
[1737956000509,0.08554898,100460.0,100450.0,2.15465421]
[1737956000712,0.08554898,100460.0,100450.0,0.65465421]
[1737956001817,0.28474198,100460.0,100450.0,0.3618]
[1737956002315,0.28474198,100460.0,100450.0,0.38849189]
[1737956002716,0.28474198,100460.0,100450.0,0.02769189]
[1737956003113,0.64554198,100460.0,100450.0,0.02769189]
[1737956003421,0.209213,100450.0,100440.0,0.36094898]
[1737956003603,0.277213,100450.0,100440.0,0.36094898]
[1737956003803,0.277213,100450.0,100440.0,1.86094898]
[1737956004416,0.277213,100450.0,100440.0,2.06018198]
[1737956004617,0.278213,100450.0,100440.0,2.06018198]
[1737956004813,0.079,100450.0,100440.0,2.06018198]
[1737956005019,0.083,100450.0,100440.0,2.18044495]
[1737956005214,0.073,100450.0,100440.0,2.18044495]
[1737956005510,0.073,100450.0,100440.0,2.27408616]
[1737956005511,0.005,100450.0,100440.0,2.27408616]
[1737956005705,0.005,100450.0,100440.0,2.24604495]
[1737956005912,0.005,100450.0,100440.0,2.33448495]
[1737956006713,0.005,100450.0,100440.0,2.26888495]
[1737956009622,0.005,100450.0,100440.0,0.76888495]
[1737956010032,0.005,100450.0,100440.0,2.26888495]
[1737956010624,0.06754898,100460.0,100450.0,0.199213]
[1737956010924,0.06754898,100460.0,100450.0,0.65365421]
[1737956012437,0.06754898,100460.0,100450.0,0.79385421]
[1737956012636,0.06954898,100460.0,100450.0,0.79385421]
[1737956013028,0.04243971,100460.0,100450.0,0.79385421]
[1737956013236,0.00214898,100460.0,100450.0,0.79385421]
[1737956013438,0.007,100460.0,100450.0,0.84265421]
[1737956014338,0.008,100460.0,100450.0,0.84265421]
[1737956014539,0.004,100460.0,100450.0,0.84165421]
[1737956015540,0.004,100460.0,100450.0,2.34165421]
[1737956018039,9.932e-05,100470.0,100450.0,2.14244121]
[1737956018240,9.932e-05,100470.0,100460.0,0.65363421]
[1737956018946,0.31112603,100480.0,100470.0,0.199173]
[1737956019134,0.1329,100480.0,100470.0,0.65361421]
[1737956019530,0.0669,100480.0,100470.0,0.65361421]
[1737956019738,0.25072603,100490.0,100480.0,0.199154]
[1737956020047,0.25072603,100490.0,100480.0,0.65359521]
[1737956020338,0.25072603,100490.0,100480.0,2.15359521]
[1737956021146,0.25672603,100490.0,100480.0,2.15459521]
[1737956021646,0.23819188,100490.0,100480.0,2.15459521]
[1737956022142,0.24019188,100490.0,100480.0,2.15459521]
[1737956022340,0.24019188,100490.0,100480.0,0.65459521]
[1737956024041,0.44932588,100490.0,100480.0,0.001]
[1737956024237,0.44932588,100490.0,100480.0,0.0242351]
[1737956024437,0.27109985,100490.0,100480.0,0.001]
[1737956024634,0.07196585,100490.0,100480.0,0.29379521]
[1737956024833,0.05343169,100490.0,100480.0,0.65459521]
[1737956025035,0.04343169,100490.0,100480.0,0.65459521]
[1737956025344,0.008,100490.0,100480.0,0.65459521]
[1737956026045,0.008,100490.0,100480.0,0.45544121]
[1737956026245,0.008,100490.0,100480.0,0.001]
[1737956026246,0.217134,100490.0,100480.0,0.001]
[1737956026444,0.217134,100490.0,100480.0,0.09464121]
[1737956026645,0.217134,100490.0,100480.0,0.001]
[1737956027754,0.209154,100480.0,100470.0,0.02365115]
[1737956027941,0.199173,100470.0,100460.0,0.41710909]
[1737956028248,0.72191421,100470.0,100460.0,0.41710909]
[1737956028645,0.628273,100470.0,100460.0,0.41710909]
[1737956029047,0.01,100460.0,100450.0,0.73854914]
[1737956029250,0.01,100460.0,100450.0,0.85599144]
[1737956029650,0.0693,100470.0,100460.0,0.199193]
[1737956029949,0.0693,100470.0,100460.0,0.65363421]
[1737956030146,0.0683,100470.0,100460.0,0.65363421]
[1737956030742,0.0693,100470.0,100460.0,0.65363421]
[1737956033448,0.21801882,100470.0,100460.0,0.65363421]
[1737956033753,0.21801882,100470.0,100460.0,2.15363421]
[1737956034547,0.22801882,100470.0,100460.0,2.15363421]
[1737956035947,0.42719182,100470.0,100460.0,1.5]
[1737956036258,0.42719182,100470.0,100450.0,0.6774543]
[1737956036453,0.0718,100460.0,100450.0,0.6774543]
[1737956036762,0.1408,100460.0,100450.0,2.1774543]
[1737956037151,0.0718,100460.0,100450.0,2.1774543]
[1737956037353,0.22701882,100470.0,100460.0,0.199193]
[1737956037555,0.22701882,100470.0,100460.0,0.65363421]
[1737956038950,0.22701882,100470.0,100460.0,0.29283421]
[1737956039150,0.22701882,100470.0,100450.0,2.1774503]
[1737956039463,0.074,100460.0,100450.0,1.8196503]
[1737956040549,0.074,100460.0,100450.0,1.8166503]
[1737956040946,0.074,100460.0,100450.0,1.72400909]
[1737956041160,0.1423,100460.0,100450.0,1.72400909]
[1737956041659,0.1423,100460.0,100450.0,1.8176503]
[1737956041859,0.074,100460.0,100450.0,1.8176503]
[1737956042055,0.22701882,100470.0,100450.0,1.9792423]
[1737956042246,0.22701882,100470.0,100460.0,0.65363421]
[1737956043160,0.21701882,100470.0,100460.0,0.65363421]
[1737956043956,0.21801882,100470.0,100460.0,0.65363421]
[1737956045063,0.21801882,100470.0,100460.0,0.72603421]
[1737956045362,0.21801882,100470.0,100460.0,2.22603421]
[1737956045867,0.21801882,100470.0,100460.0,1.59364121]
[1737956047050,0.21801882,100470.0,100460.0,2.15363421]
[1737956050054,0.21801882,100470.0,100460.0,1.79283421]
[1737956051167,0.21801882,100470.0,100460.0,1.699193]
[1737956052063,0.21801882,100470.0,100460.0,0.199193]
[1737956053270,0.41719182,100470.0,100460.0,0.199193]
[1737956057566,0.44669903,100470.0,100460.0,0.199193]
[1737956057869,0.44669903,100470.0,100460.0,0.28574744]
[1737956058075,0.44669903,100470.0,100460.0,1.78574744]
[1737956061866,0.44669903,100470.0,100460.0,2.14654744]
[1737956062173,0.44669903,100470.0,100460.0,1.78574744]
[1737956063573,0.25752603,100470.0,100460.0,2.14654744]
[1737956063968,0.18922603,100470.0,100460.0,2.14654744]
[1737956064370,0.18922603,100470.0,100460.0,2.35824744]
[1737956065274,0.17922603,100470.0,100460.0,0.85824744]
[1737956065468,0.10672842,100470.0,100460.0,0.94480188]
[1737956065670,0.10672842,100470.0,100460.0,0.85824744]
[1737956065974,0.10672842,100470.0,100460.0,2.35824744]
[1737956068977,0.08214843,100470.0,100460.0,2.44480188]
[1737956069278,0.11935857,100470.0,100460.0,2.62334002]
[1737956069674,0.11935857,100470.0,100460.0,2.53678558]
[1737956069977,0.11935857,100470.0,100460.0,2.62334002]
[1737956070179,0.08132142,100470.0,100460.0,2.62334002]
[1737956070772,0.03139142,100470.0,100460.0,2.62334002]
[1737956071481,0.03139142,100470.0,100460.0,2.53678558]
[1737956071777,0.03139142,100470.0,100460.0,2.62334002]
[1737956072186,0.03139142,100470.0,100460.0,2.53678558]
[1737956072882,0.14934719,100480.0,100470.0,0.199173]
[1737956073077,0.14934719,100480.0,100470.0,0.73308188]
[1737956073579,0.14934719,100480.0,100470.0,2.23308188]
[1737956073975,0.15434719,100480.0,100470.0,2.23308188]
[1737956074280,0.07433218,100480.0,100470.0,2.23308188]
[1737956075491,0.03738218,100480.0,100470.0,2.23308188]
[1737956077074,0.005,100480.0,100470.0,2.41162002]
[1737956079481,0.005,100480.0,100470.0,2.44873876]
[1737956079877,0.005,100480.0,100470.0,2.53681876]
[1737956080782,0.005,100480.0,100470.0,0.86218432]
[1737956081086,0.1545,100480.0,100470.0,0.86218432]
[1737956081282,0.2276,100480.0,100470.0,2.36218432]
[1737956081680,0.436754,100480.0,100470.0,0.57645688]
[1737956082178,0.436754,100480.0,100470.0,2.07645688]
[1737956082376,0.436754,100480.0,100470.0,1.71565688]
[1737956083797,0.436754,100480.0,100470.0,1.80221132]
[1737956084287,0.436754,100480.0,100470.0,1.62367318]
[1737956084486,0.436754,100480.0,100470.0,1.98447318]
[1737956087190,0.436754,100480.0,100470.0,1.89791874]
[1737956088183,0.2376,100480.0,100470.0,2.18364618]
[1737956091295,0.2376,100480.0,100470.0,2.16184618]
[1737956091593,0.2376,100480.0,100470.0,0.74840062]
[1737956091796,0.0795,100480.0,100470.0,0.74840062]
[1737956092196,0.0795,100480.0,100470.0,2.24840062]
[1737956094087,0.005,100480.0,100470.0,2.24840062]
[1737956099795,0.0745,100480.0,100470.0,2.24840062]
[1737956102905,0.0735,100480.0,100470.0,2.25440062]
[1737956103105,0.0695,100480.0,100470.0,2.26340062]
[1737956103295,0.0705,100480.0,100470.0,2.26340062]
[1737956103498,0.13080063,100490.0,100480.0,0.199154]
[1737956103800,0.15076364,100500.0,100490.0,0.199134]
[1737956104003,0.15076364,100500.0,100490.0,2.23304288]
[1737956104396,0.31874913,100510.0,100490.0,2.03390888]
[1737956104397,0.23186364,100510.0,100490.0,2.03390888]
[1737956104600,0.23186364,100510.0,100500.0,0.73302288]
[1737956106704,0.23186364,100510.0,100500.0,0.64646844]
[1737956108208,0.0811,100510.0,100500.0,0.64646844]
[1737956109502,0.0811,100510.0,100490.0,0.39798819]
[1737956109503,0.01,100500.0,100490.0,0.39798819]
[1737956109693,0.278214,100500.0,100490.0,0.03666819]
[1737956109900,0.352914,100500.0,100490.0,0.03666819]
[1737956110703,0.352914,100500.0,100490.0,0.03966819]
[1737956110899,0.352914,100500.0,100490.0,0.12622263]
[1737956111407,0.352914,100500.0,100490.0,0.32635663]
[1737956113398,0.352914,100500.0,100490.0,0.23980219]
[1737956115410,0.342914,100500.0,100490.0,0.04066819]
[1737956116805,0.342914,100500.0,100490.0,0.23980219]
[1737956117310,0.342914,100500.0,100490.0,1.73980219]
[1737956120008,0.342914,100500.0,100490.0,1.54066819]
[1737956120206,0.342914,100500.0,100490.0,0.00414898]
[1737956121523,0.703714,100500.0,100490.0,0.00414898]
[1737956124017,0.342914,100500.0,100490.0,0.00414898]
[1737956126713,1.09026844,100500.0,100490.0,0.00414898]
[1737956127020,0.01,100490.0,100470.0,0.20066358]
[1737956127210,0.1454,100480.0,100470.0,0.24740082]
[1737956127411,0.1454,100480.0,100470.0,1.74740082]
[1737956127916,0.344553,100480.0,100470.0,1.54822982]
[1737956128211,0.705353,100480.0,100470.0,0.00549258]
[1737956128619,0.705353,100480.0,100470.0,0.004]
[1737956128805,0.706353,100480.0,100470.0,0.013]
[1737956130714,0.706353,100480.0,100470.0,0.012]
[1737956131519,0.88518372,100480.0,100470.0,0.012]
[1737956133814,0.52438372,100480.0,100470.0,0.012]
[1737956134213,0.52438372,100480.0,100470.0,1.512]
[1737956134424,0.88518372,100480.0,100470.0,1.512]
[1737956134817,0.52438372,100480.0,100470.0,1.512]
[1737956135019,0.45108372,100480.0,100470.0,1.79772744]
[1737956135318,0.37898372,100480.0,100470.0,2.15852744]
[1737956135525,0.17983072,100480.0,100470.0,2.24508188]
[1737956135830,0.17568174,100480.0,100470.0,2.39108188]
[1737956137422,0.10984374,100480.0,100470.0,2.39108188]
[1737956137627,0.01766194,100480.0,100470.0,2.47888188]
[1737956137927,0.00014898,100490.0,100480.0,0.199153]
[1737956138125,0.00014898,100490.0,100480.0,0.64650744]
[1737956138721,0.01,100500.0,100490.0,0.199134]
[1737956139026,0.01,100500.0,100490.0,0.64648844]
[1737956139630,0.01,100500.0,100490.0,0.28568844]
[1737956139925,0.01,100500.0,100490.0,0.64648844]
[1737956140121,0.01,100500.0,100490.0,0.64948844]
[1737956140323,0.01,100500.0,100490.0,0.65048844]
[1737956142816,0.01,100500.0,100490.0,2.15048844]
[1737956143029,0.01,100500.0,100490.0,2.21948844]
[1737956145221,0.01,100500.0,100490.0,2.29148844]
[1737956145422,0.01,100500.0,100490.0,2.34236737]
[1737956145829,0.01,100510.0,100500.0,0.199114]
[1737956146030,0.01,100510.0,100500.0,0.64646844]
[1737956148131,0.011,100510.0,100500.0,0.64646844]
[1737956148320,0.011,100510.0,100500.0,2.14646844]
[1737956157239,0.0823,100510.0,100500.0,2.14646844]
[1737956159635,0.0823,100510.0,100500.0,2.23302288]
[1737956159835,0.001,100510.0,100500.0,0.73302288]
[1737956160136,0.001,100510.0,100500.0,0.80472288]
[1737956160337,0.001,100510.0,100500.0,2.30472288]
[1737956161031,0.001,100510.0,100500.0,2.39240288]
[1737956163534,0.001,100510.0,100500.0,2.57094102]
[1737956165440,0.001,100510.0,100500.0,3.10630102]
[1737956167743,0.0678,100530.0,100520.0,0.199074]
[1737956167933,0.0678,100530.0,100520.0,1.00722844]
[1737956168434,0.0678,100530.0,100520.0,2.50722844]
[1737956168834,0.0698,100530.0,100520.0,2.50722844]
[1737956169344,0.0768,100530.0,100520.0,2.50822844]
[1737956170237,0.0868,100530.0,100520.0,2.50822844]
[1737956170633,0.285854,100530.0,100520.0,0.001]
[1737956170842,0.199074,100520.0,100510.0,0.17842712]
[1737956171043,0.334874,100520.0,100510.0,1.67842712]
[1737956171431,0.334874,100520.0,100510.0,1.76498156]
[1737956172031,0.1398,100520.0,100510.0,2.12578156]
[1737956172231,0.1498,100520.0,100510.0,2.32487556]
[1737956173145,0.32834639,100520.0,100510.0,2.14659742]
[1737956173845,0.32834639,100520.0,100510.0,2.19579949]
[1737956175756,0.1498,100520.0,100510.0,2.19579949]
[1737956177141,0.1398,100520.0,100510.0,2.19579949]
[1737956178838,0.1398,100520.0,100510.0,1.99670549]
[1737956179655,0.338874,100520.0,100510.0,1.91015105]
[1737956179849,0.699674,100520.0,100510.0,1.54935105]
[1737956182150,0.338874,100520.0,100510.0,1.91015105]
[1737956182458,0.338874,100520.0,100510.0,2.10924505]
[1737956184054,0.0825,100520.0,100510.0,0.69579949]
[1737956184261,0.004,100520.0,100510.0,0.69579949]
[1737956184559,0.004,100520.0,100510.0,2.26339949]
[1737956187760,0.004,100520.0,100510.0,2.33399949]
[1737956189862,0.0778,100530.0,100520.0,0.199074]
[1737956190060,0.0778,100530.0,100520.0,0.64642844]
[1737956191065,0.0798,100530.0,100520.0,0.64642844]
[1737956191254,0.012,100530.0,100520.0,0.64642844]
[1737956191563,0.019,100530.0,100520.0,0.80078288]
[1737956191757,0.019,100530.0,100520.0,0.71422844]
[1737956191959,0.019,100530.0,100520.0,0.80078288]
[1737956192262,0.019,100530.0,100520.0,0.80053467]
[1737956192464,0.009,100530.0,100520.0,0.80053467]
[1737956192651,1e-08,100540.0,100530.0,0.199054]
[1737956192853,1e-08,100540.0,100530.0,0.73296288]
[1737956193059,1e-08,100540.0,100530.0,0.87386288]
[1737956193356,1e-08,100540.0,100530.0,2.37386288]
[1737956193864,1e-08,100540.0,100530.0,2.37686288]
[1737956194171,0.19877252,100550.0,100540.0,0.199035]
[1737956194460,0.19877252,100550.0,100540.0,0.64638944]
[1737956195365,0.19877252,100550.0,100540.0,0.64838944]
[1737956195762,0.19877252,100550.0,100540.0,0.65238944]
[1737956196961,0.19436585,100550.0,100540.0,0.65238944]
[1737956197567,0.19436585,100550.0,100540.0,0.687723]
[1737956198859,0.19436585,100550.0,100540.0,2.187723]
[1737956199169,0.18995918,100550.0,100540.0,2.187723]
[1737956199857,0.0723,100550.0,100540.0,2.187723]
[1737956200065,0.2086073,100580.0,100560.0,0.198985]
[1737956200260,0.2805073,100580.0,100570.0,0.44735444]
[1737956200462,0.2805073,100580.0,100570.0,0.64632944]
[1737956200663,0.2805073,100580.0,100570.0,2.14632944]
[1737956200862,0.2805073,100580.0,100570.0,1.5]
[1737956200863,0.56601674,100580.0,100570.0,1.5]
[1737956201063,0.198975,100570.0,100560.0,0.00014898]
[1737956201272,0.71802944,100570.0,100560.0,0.00014898]
[1737956201569,0.631475,100570.0,100560.0,0.00014898]
[1737956202166,0.71802944,100570.0,100560.0,0.00014898]
[1737956202362,0.78752944,100570.0,100560.0,0.00014898]
[1737956202569,0.199002,100560.0,100540.0,0.681719]
[1737956202766,0.1412,100550.0,100540.0,0.681719]
[1737956202969,0.1412,100550.0,100540.0,2.181719]
[1737956204466,0.19915098,100560.0,100540.0,2.186719]
[1737956204661,0.33865098,100560.0,100550.0,0.08655444]
[1737956205473,0.13964898,100560.0,100550.0,0.64636944]
[1737956206168,0.13964898,100560.0,100550.0,0.64736944]
[1737956206561,0.00014898,100560.0,100550.0,0.64736944]
[1737956206765,0.00014898,100560.0,100550.0,0.79276944]
[1737956208574,0.00014898,100560.0,100550.0,2.29276944]
[1737956215267,0.00014898,100560.0,100550.0,0.87932388]
[1737956215571,0.00014898,100560.0,100550.0,0.94782388]
[1737956215778,0.00014898,100560.0,100550.0,2.44782388]
[1737956215978,0.00014898,100560.0,100550.0,2.36126944]
[1737956217477,0.00014898,100560.0,100550.0,2.44782388]
[1737956218573,0.00014898,100560.0,100550.0,2.53514388]
[1737956219177,0.00014898,100560.0,100550.0,2.71342202]
[1737956220581,0.00014898,100560.0,100550.0,2.98766758]
[1737956224274,0.00014898,100560.0,100550.0,2.83184758]
[1737956224480,0.00014898,100560.0,100550.0,1.18644758]
[1737956224873,0.13844898,100560.0,100550.0,2.68644758]
[1737956226481,0.69824398,100560.0,100550.0,1.67927814]
[1737956227877,0.69824398,100560.0,100550.0,1.76583258]
[1737956228075,0.33744398,100560.0,100550.0,1.76583258]
[1737956228581,0.33744398,100560.0,100550.0,2.14736944]
[1737956229984,0.13844898,100560.0,100550.0,2.14736944]
[1737956232178,0.00014898,100560.0,100550.0,2.14736944]
[1737956233384,0.0711,100570.0,100550.0,0.53490888]
[1737956233583,0.0711,100570.0,100560.0,0.73290388]
[1737956233775,0.0711,100570.0,100560.0,2.14634944]
[1737956233980,0.0711,100570.0,100560.0,2.23290388]
[1737956234477,0.0711,100570.0,100560.0,1.94735444]
[1737956235076,0.0741,100570.0,100560.0,1.94735444]
[1737956235477,0.0741,100570.0,100560.0,0.44735444]
[1737956235878,0.0741,100570.0,100560.0,0.3608]
[1737956236077,0.273075,100570.0,100560.0,0.3608]
[1737956236980,0.273075,100570.0,100550.0,0.82478656]
[1737956237180,0.1394,100560.0,100550.0,0.82478656]
[1737956237785,0.1394,100560.0,100550.0,0.64650842]
[1737956238579,0.0711,100570.0,100560.0,0.198995]
[1737956238788,0.0711,100570.0,100560.0,0.64634944]
[1737956238979,0.0711,100570.0,100560.0,0.559795]
[1737956239183,0.0711,100570.0,100560.0,0.198995]
[1737956239581,0.630875,100570.0,100550.0,0.64751442]
[1737956239890,0.1341,100560.0,100550.0,0.64651442]
[1737956240784,0.1341,100560.0,100550.0,0.82479256]
[1737956242685,0.1341,100560.0,100550.0,2.32479256]
[1737956243082,0.333095,100560.0,100550.0,2.12578156]
[1737956243278,0.333095,100560.0,100550.0,2.04022712]
[1737956243481,0.333095,100560.0,100550.0,0.36194898]
[1737956243687,0.333095,100560.0,100550.0,0.44850342]
[1737956243889,0.333095,100560.0,100550.0,1.94850342]
[1737956244694,0.323095,100560.0,100550.0,1.94850342]
[1737956247388,0.323095,100560.0,100550.0,1.86194898]
[1737956249087,0.323095,100560.0,100550.0,2.06096398]
[1737956249289,0.1241,100560.0,100550.0,2.14751842]
[1737956250500,0.1241,100560.0,100550.0,2.06096398]
[1737956251103,0.1241,100560.0,100550.0,0.00114898]
[1737956251104,0.77044944,100560.0,100550.0,0.00114898]
[1737956251989,0.683895,100560.0,100550.0,0.00114898]
[1737956257098,0.683895,100560.0,100550.0,1.50114898]
[1737956257300,0.8925023,100560.0,100550.0,1.50114898]
[1737956257694,0.2086073,100560.0,100550.0,1.94850342]
[1737956257901,0.2086073,100560.0,100550.0,2.21781842]
[1737956260410,0.270078,100570.0,100550.0,2.21781842]
[1737956262012,1.14683544,100580.0,100560.0,0.64634944]
[1737956262210,1.14683544,100580.0,100570.0,0.08655444]
[1737956262211,1.14571543,100580.0,100570.0,0.08655444]